fUST/lending_fUST_20250912
["ID","MTS","AMOUNT","RATE_DAILY","PERIOD"]
[384997295,1757641845594,-1000.0,0.0001655,2]
[384997297,1757641845603,-1000.0,0.0001655,2]
[384997299,1757641845613,-1000.0,0.0001655,2]
[384997301,1757641845622,-1000.0,0.0001655,2]
[384997303,1757641845631,-1000.0,0.0001655,2]
[384997305,1757641845640,-1000.0,0.0001655,2]
[384997307,1757641845649,-1000.0,0.0001655,2]
[384997309,1757641845659,-1000.0,0.0001655,2]
[384997311,1757641845668,-1000.0,0.0001655,2]
[384997313,1757641845677,-1000.0,0.0001655,2]
[384997315,1757641845687,-1000.0,0.0001655,2]
[384997318,1757641845697,-1000.0,0.0001655,2]
[384997320,1757641845707,-1000.0,0.0001655,2]
[384997322,1757641845716,-1000.0,0.0001655,2]
[384997324,1757641845726,-281.933117,0.0001655,2]
[384997326,1757641845735,-151.0,0.0001655,2]
[384997328,1757641845744,-151.0,0.0001655,2]
[384997330,1757641845754,-213.49134,0.0001655,2]
[384997332,1757641845764,-933.28,0.0001655,2]
[384997334,1757641845773,-480.0,0.0001655,2]
[384997336,1757641845782,-756.37,0.0001655,2]
[384997338,1757641845791,-1260.59,0.0001655,2]
[384997340,1757641845800,-480.0,0.0001655,2]
[384997342,1757641845810,-151.0,0.0001655,2]
[384997344,1757641845819,-480.0,0.0001655,2]
[384997346,1757641845827,-152.029443,0.0001655,2]
[384997347,1757641845836,-480.0,0.0001655,2]
[384997349,1757641845845,-151.0,0.0001655,2]
[384997351,1757641845854,-151.0,0.0001655,2]
[384997353,1757641845864,-831.37,0.0001655,2]
[384997355,1757641845873,-151.0,0.0001655,2]
[384997357,1757641845884,-1013.41,0.0001655,2]
[384997359,1757641845896,-171.45641597,0.0001655,2]
[384997362,1757641845905,-151.0,0.0001655,2]
[384997364,1757641845915,-480.0,0.0001655,2]
[384997366,1757641845924,-151.0,0.0001655,2]
[384997368,1757641845934,-1232.83,0.0001655,2]
[384997370,1757641845943,-480.0,0.0001655,2]
[384997372,1757641845953,-307.82675109,0.0001655,2]
[384997374,1757641845964,-2693.59,0.0001655,2]
[384997376,1757641845974,-363.79826642,0.0001655,2]
[384997378,1757641845983,-2811.94,0.0001655,2]
[384997380,1757641845992,-499.29,0.0001655,2]
[384997382,1757641846002,-597.41,0.0001655,2]
[384997384,1757641846011,-151.0,0.0001655,2]
[384997386,1757641846022,-7142.53,0.0001655,2]
[384997388,1757641846031,-310.58435511,0.00016551,2]
[384997390,1757641846040,-480.0,0.00016551,2]
[384997392,1757641846050,-480.0,0.00016551,2]
[384997394,1757641846059,-480.0,0.00016551,2]
[384997396,1757641846069,-151.0,0.00016551,2]
[384997398,1757641846078,-480.0,0.00016551,2]
[384997400,1757641846088,-829.62,0.00016551,2]
[384997402,1757641846097,-151.0,0.00016551,2]
[384997404,1757641846107,-151.0,0.00016551,2]
[384997406,1757641846116,-151.0,0.00016551,2]
[384997408,1757641846127,-480.0,0.00016551,2]
[384997410,1757641846136,-480.0,0.00016551,2]
[384997412,1757641846145,-768.51,0.00016551,2]
[384997415,1757641846154,-480.05135564,0.00016551,2]
[384997418,1757641846163,-624.59,0.00016551,2]
[384997420,1757641846172,-500.0,0.00016551,2]
[384997423,1757641846182,-480.0,0.00016551,2]
[384997425,1757641846192,-480.0,0.00016551,2]
[384997427,1757641846200,-480.0,0.00016551,2]
[384997429,1757641846209,-151.0,0.00016573,2]
[384997431,1757641846219,-151.0,0.00016573,2]
[384997433,1757641846227,-480.0,0.00016574,2]
[384997435,1757641846236,-155.0,0.000166,2]
[384997437,1757641846245,-168.0,0.00016608,2]
[384997439,1757641846254,-168.0,0.00016622,2]
[384997441,1757641846263,-360.0,0.00016675,2]
[384997443,1757641846272,-168.0,0.00016681,2]
[384997445,1757641846280,-168.0,0.0001678,2]
[384997447,1757641846289,-168.0,0.00016797,2]
[384997449,1757641846299,-480.0,0.00016824,2]
[384997451,1757641846308,-480.0,0.00016824,2]
[384997453,1757641846317,-452.23403591,0.00016824,2]
[384997455,1757641846325,-480.0,0.00016824,2]
[384997457,1757641846335,-1576.27,0.00016824,2]
[384997459,1757641846344,-933.28,0.00016824,2]
[384997461,1757641846354,-480.0,0.00016824,2]
[384997463,1757641846363,-756.37,0.00016824,2]
[384997465,1757641846372,-1260.59,0.00016824,2]
[384997467,1757641846386,-480.0,0.00016824,2]
[384997470,1757641846399,-480.0,0.00016824,2]
[384997472,1757641846413,-480.0,0.00016824,2]
[384997474,1757641846426,-831.37,0.00016824,2]
[384997477,1757641846437,-1013.41,0.00016824,2]
[384997479,1757641846451,-480.0,0.00016824,2]
[384997482,1757641846462,-1232.83,0.00016824,2]
[384997484,1757641846475,-480.0,0.00016824,2]
[384997487,1757641846490,-2693.59,0.00016824,2]
[384997489,1757641846502,-2811.94,0.00016824,2]
[384997491,1757641846514,-499.29,0.00016824,2]
[384997494,1757641846527,-597.41,0.00016824,2]
[384997496,1757641846540,-7142.53,0.00016824,2]
[384997499,1757641846553,-480.0,0.00016825,2]
[384997501,1757641846565,-480.0,0.00016825,2]
[384997503,1757641846577,-480.0,0.00016825,2]
[384997505,1757641846589,-480.0,0.00016825,2]
[384997508,1757641846602,-829.62,0.00016825,2]
[384997510,1757641846614,-480.0,0.00016825,2]
[384997513,1757641846626,-480.0,0.00016825,2]
[384997515,1757641846637,-768.51,0.00016825,2]
[384997517,1757641846648,-624.59,0.00016825,2]
[384997519,1757641846661,-385.36645239,0.00016825,2]
[384997521,1757641846672,-480.0,0.00016825,2]
[384997524,1757641846685,-480.0,0.00016825,2]
[384997526,1757641846698,-480.0,0.00016825,2]
[384997528,1757641846710,-480.0,0.00016848,2]
[384997531,1757641846724,-168.0,0.00016926,2]
[384997533,1757641846737,-530.95967032,0.00017,7]
[384997536,1757641846750,-153.0,0.00017096,2]
[384997538,1757641846763,-300.0,0.00017098,2]
[384997540,1757641846774,-300.0,0.00017098,2]
[384997542,1757641846784,-300.0,0.00017098,2]
[384997544,1757641846794,-300.0,0.00017098,2]
[384997547,1757641846806,-480.0,0.00017098,2]
[384997549,1757641846819,-480.0,0.00017098,2]
[384997552,1757641846833,-480.0,0.00017098,2]
[384997554,1757641846845,-1576.27,0.00017098,2]
[384997556,1757641846856,-933.28,0.00017098,2]
[384997558,1757641846868,-480.0,0.00017098,2]
[384997560,1757641846882,-756.37,0.00017098,2]
[384997562,1757641846898,-1260.59,0.00017098,2]
[384997565,1757641846908,-480.0,0.00017098,2]
[384997567,1757641846919,-480.0,0.00017098,2]
[384997569,1757641846931,-480.0,0.00017098,2]
[384997571,1757641846943,-831.37,0.00017098,2]
[384997574,1757641846954,-1013.41,0.00017098,2]
[384997576,1757641846965,-480.0,0.00017098,2]
[384997578,1757641846976,-1232.83,0.00017098,2]
[384997580,1757641846987,-480.0,0.00017098,2]
[384997582,1757641846999,-2693.59,0.00017098,2]
[384997584,1757641847010,-2811.94,0.00017098,2]
[384997587,1757641847021,-499.29,0.00017098,2]
[384997589,1757641847032,-597.41,0.00017098,2]
[384997591,1757641847044,-7142.53,0.00017098,2]
[384997593,1757641847055,-480.0,0.00017099,2]
[384997595,1757641847067,-480.0,0.00017099,2]
[384997598,1757641847079,-214.68164968,0.00017099,2]
[384997600,1757641847089,-480.0,0.00017099,2]
[384997602,1757641847100,-829.62,0.00017099,2]
[384997604,1757641847111,-480.0,0.00017099,2]
[384997606,1757641847125,-480.0,0.00017099,2]
[384997609,1757641847137,-768.51,0.00017099,2]
[384997611,1757641847148,-624.59,0.00017099,2]
[384997613,1757641847159,-233.246092,0.00017099,2]
[384997615,1757641847170,-233.246092,0.00017099,2]
[384997618,1757641847183,-233.246092,0.00017099,2]
[384997620,1757641847194,-233.246092,0.00017099,2]
[384997622,1757641847204,-151.0,0.00017099,2]
[384997624,1757641847215,-151.0,0.00017099,2]
[384997626,1757641847226,-260.362815,0.00017099,2]
[384997628,1757641847237,-255.129391,0.00017099,2]
[384997631,1757641847247,-255.129391,0.00017099,2]
[384997633,1757641847258,-255.129391,0.00017099,2]
[384997635,1757641847268,-255.129391,0.00017099,2]
[384997637,1757641847279,-480.0,0.00017099,2]
[384997639,1757641847291,-528.28307572,0.00017099,2]
[384997642,1757641847302,-480.0,0.00017099,2]
[384997644,1757641847313,-480.0,0.00017122,2]
[384997646,1757641847324,-587.0,0.00017218,2]
[384997648,1757641847334,-460.0,0.00017223,2]
[384997650,1757641847345,-339.44485625,0.00017296,2]
[384997653,1757641847356,-480.0,0.00017372,2]
[384997655,1757641847367,-480.0,0.00017372,2]
[384997657,1757641847380,-410.87153726,0.00017372,2]
[384997659,1757641847391,-1576.27,0.00017372,2]
[384997661,1757641847402,-933.28,0.00017372,2]
[384997663,1757641847411,-480.0,0.00017372,2]
[384997665,1757641847420,-756.37,0.00017372,2]
[384997667,1757641847430,-1260.59,0.00017372,2]
[384997670,1757641847439,-480.0,0.00017372,2]
[384997671,1757641847448,-178.868831,0.00017372,2]
[384997673,1757641847457,-229.76645071,0.00017372,2]
[384997675,1757641847466,-480.0,0.00017372,2]
[384997677,1757641847475,-157.665643,0.00017372,2]
[384997679,1757641847485,-151.0,0.00017372,2]
[384997681,1757641847495,-151.0,0.00017372,2]
[384997683,1757641847504,-831.37,0.00017372,2]
[384997697,1757641847513,-1013.41,0.00017372,2]
[384997703,1757641847663,-158.405656,0.00017372,2]
[384997705,1757641847675,-480.0,0.00017372,2]
[384997707,1757641847684,-151.0,0.00017372,2]
[384997709,1757641847694,-1232.83,0.00017372,2]
[384997711,1757641847703,-480.0,0.00017372,2]
[384997713,1757641847713,-2693.59,0.00017372,2]
[384997715,1757641847722,-2811.94,0.00017372,2]
[384997717,1757641847731,-499.29,0.00017372,2]
[384997719,1757641847741,-597.41,0.00017372,2]
[384997721,1757641847750,-7142.53,0.00017372,2]
[384997723,1757641847759,-415.72465574,0.00017373,2]
[384997725,1757641847768,-480.0,0.00017373,2]
[384997727,1757641847778,-480.0,0.00017373,2]
[384997729,1757641847788,-829.62,0.00017373,2]
[384997731,1757641847797,-412.18495422,0.00017373,2]
[384997733,1757641847808,-556.32064525,0.00017373,2]
[384997736,1757641847817,-186.709329,0.00017373,2]
[384997738,1757641847827,-186.709329,0.00017373,2]
[384997740,1757641847836,-186.709329,0.00017373,2]
[384997742,1757641847846,-186.709329,0.00017373,2]
[384997744,1757641847855,-151.0,0.00017373,2]
[384997746,1757641847864,-768.51,0.00017373,2]
[384997748,1757641847874,-151.0,0.00017373,2]
[384997750,1757641847887,-245.672741,0.00017373,2]
[384997751,1757641847900,-624.59,0.00017373,2]
[384997754,1757641847910,-151.0,0.00017373,2]
[384997756,1757641847920,-151.0,0.00017373,2]
[384997758,1757641847930,-480.0,0.00017373,2]
[384997760,1757641847939,-480.0,0.00017373,2]
[384997762,1757641847948,-480.0,0.00017396,2]
[384997764,1757641847958,-151.0,0.00017397,2]
[384997766,1757641847967,-153.0,0.00017397,2]
[384997767,1757641847977,-153.0,0.00017397,2]
[384997770,1757641847986,-153.0,0.00017397,2]
[384997771,1757641847995,-456.1260357,0.00017397,2]
[384997774,1757641848005,-152.80458539,0.0001745,2]
[384997775,1757641848015,-480.0,0.00017646,2]
[384997777,1757641848024,-480.0,0.00017646,2]
[384997779,1757641848034,-151.0,0.00017646,2]
[384997781,1757641848043,-151.0,0.00017646,2]
[384997783,1757641848053,-151.0,0.00017646,2]
[384997785,1757641848063,-1576.27,0.00017646,2]
[384997787,1757641848072,-933.28,0.00017646,2]
[384997789,1757641848082,-493.74230819,0.00017646,2]
[384997791,1757641848091,-756.37,0.00017646,2]
[384997793,1757641848101,-1260.59,0.00017646,2]
[384997795,1757641848111,-480.0,0.00017646,2]
[384997797,1757641848120,-480.0,0.00017646,2]
[384997799,1757641848132,-831.37,0.00017646,2]
[384997802,1757641848141,-1013.41,0.00017646,2]
[384997804,1757641848151,-480.0,0.00017646,2]
[384997806,1757641848161,-1232.83,0.00017646,2]
[384997807,1757641848170,-480.0,0.00017646,2]
[384997809,1757641848180,-2693.59,0.00017646,2]
[384997812,1757641848190,-2811.94,0.00017646,2]
[384997813,1757641848199,-499.29,0.00017646,2]
[384997816,1757641848209,-597.41,0.00017646,2]
[384997817,1757641848218,-151.0,0.00017646,2]
[384997819,1757641848228,-7142.53,0.00017646,2]
[384997821,1757641848238,-480.0,0.00017647,2]
[384997823,1757641848247,-151.0,0.00017647,2]
[384997826,1757641848257,-480.0,0.00017647,2]
[384997828,1757641848267,-829.62,0.00017647,2]
[384997830,1757641848277,-768.51,0.00017647,2]
[384997832,1757641848286,-624.59,0.00017647,2]
[384997833,1757641848296,-480.0,0.00017647,2]
[384997835,1757641848306,-480.0,0.00017647,2]
[384997838,1757641848316,-480.0,0.0001767,2]
[384997839,1757641848325,-864.0,0.00017719,2]
[384997842,1757641848335,-560.0,0.00017771,2]
[384997844,1757641848346,-480.0,0.0001792,2]
[384997846,1757641848355,-480.0,0.0001792,2]
[384997848,1757641848365,-1576.27,0.0001792,2]
[384997850,1757641848376,-933.28,0.0001792,2]
[384997852,1757641848385,-756.37,0.0001792,2]
[384997854,1757641848395,-1260.59,0.0001792,2]
[384997855,1757641848406,-480.0,0.0001792,2]
[384997858,1757641848415,-480.0,0.0001792,2]
[384997859,1757641848424,-831.37,0.0001792,2]
[384997861,1757641848434,-1013.41,0.0001792,2]
[384997864,1757641848443,-480.0,0.0001792,2]
[384997866,1757641848453,-1232.83,0.0001792,2]
[384997868,1757641848463,-480.0,0.0001792,2]
[384997870,1757641848472,-2693.59,0.0001792,2]
[384997872,1757641848481,-2811.94,0.0001792,2]
[384997874,1757641848491,-499.29,0.0001792,2]
[384997876,1757641848501,-597.41,0.0001792,2]
[384997878,1757641848510,-7142.53,0.0001792,2]
[384997880,1757641848519,-501.86219998,0.00017921,2]
[384997882,1757641848529,-480.0,0.00017921,2]
[384997884,1757641848538,-829.62,0.00017921,2]
[384997886,1757641848548,-768.51,0.00017921,2]
[384997888,1757641848557,-624.59,0.00017921,2]
[384997890,1757641848567,-480.0,0.00017921,2]
[384997892,1757641848576,-480.0,0.00017921,2]
[384997894,1757641848586,-480.0,0.00017944,2]
[384997896,1757641848596,-766.0,0.00018,2]
[384997898,1757641848605,-979.178,0.00018078,2]
[384997900,1757641848614,-2160.523,0.00018078,2]
[384997902,1757641848625,-636.222,0.00018078,2]
[384997904,1757641848634,-410.963,0.00018078,2]
[384997906,1757641848644,-21679.4781342,0.00018115,2]
[384997908,1757641848654,-154.313128,0.00018115,2]
[384997910,1757641848664,-151.0,0.00018115,2]
[384997912,1757641848673,-151.0,0.00018115,2]
[384997914,1757641848682,-152.427047,0.00018115,2]
[384997916,1757641848692,-151.0,0.00018115,2]
[384997917,1757641848703,-233.246092,0.00018115,2]
[384997919,1757641848712,-233.246092,0.00018115,2]
[384997922,1757641848724,-233.246092,0.00018115,2]
[384997924,1757641848733,-233.2461,0.00018115,2]
[384997926,1757641848743,-151.0,0.00018115,2]
[384997927,1757641848753,-151.0,0.00018115,2]
[384997930,1757641848763,-255.129391,0.00018115,2]
[384997931,1757641848773,-255.129391,0.00018115,2]
[384997933,1757641848782,-255.129391,0.00018115,2]
[384997935,1757641848792,-255.129391,0.00018115,2]
[384997937,1757641848804,-236.47393207,0.00018125,2]
[384997939,1757641848814,-500.0,0.00018125,2]
[384997941,1757641848823,-300.0,0.00018194,2]
[384997943,1757641848833,-300.0,0.00018194,2]
[384997945,1757641848843,-300.0,0.00018194,2]
[384997947,1757641848854,-300.0,0.00018194,2]
[384997949,1757641848864,-480.0,0.00018194,2]
[384997951,1757641848873,-480.0,0.00018194,2]
[384997953,1757641848884,-186.709329,0.00018194,2]
[384997955,1757641848896,-186.709329,0.00018194,2]
[384997957,1757641848907,-186.709329,0.00018194,2]
[384997958,1757641848917,-186.709325,0.00018194,2]
[384997959,1757641848927,-151.0,0.00018194,2]
[384997960,1757641848937,-151.0,0.00018194,2]
[384997961,1757641848946,-1576.27,0.00018194,2]
[384997962,1757641848955,-151.0,0.00018194,2]
[384997963,1757641848967,-151.0,0.00018194,2]
[384997964,1757641848976,-933.28,0.00018194,2]
[384997965,1757641848985,-756.37,0.00018194,2]
[384997966,1757641848994,-1260.59,0.00018194,2]
[384997967,1757641849003,-157.52224732,0.00018194,2]
[384997968,1757641849012,-480.0,0.00018194,2]
[384997969,1757641849022,-831.37,0.00018194,2]
[384997971,1757641849031,-1013.41,0.00018194,2]
[384997972,1757641849040,-480.0,0.00018194,2]
[384997974,1757641849049,-1232.83,0.00018194,2]
[384997976,1757641849058,-480.0,0.00018194,2]
[384997978,1757641849068,-2693.59,0.00018194,2]
[384997980,1757641849078,-2811.94,0.00018194,2]
[384997982,1757641849087,-499.29,0.00018194,2]
[384997984,1757641849096,-597.41,0.00018194,2]
[384997986,1757641849106,-7142.53,0.00018194,2]
[384997988,1757641849116,-480.0,0.00018195,2]
[384997990,1757641849125,-151.0,0.00018195,2]
[384997992,1757641849134,-829.62,0.00018195,2]
[384997994,1757641849143,-151.0,0.00018195,2]
[384997996,1757641849153,-151.0,0.00018195,2]
[384997998,1757641849162,-153.975442,0.00018195,2]
[384998000,1757641849174,-768.51,0.00018195,2]
[384998002,1757641849183,-624.59,0.00018195,2]
[384998004,1757641849193,-154.135232,0.00018195,2]
[384998006,1757641849202,-151.0,0.00018195,2]
[384998008,1757641849212,-480.0,0.00018195,2]
[384998010,1757641849221,-151.0,0.00018195,2]
[384998012,1757641849230,-480.0,0.00018195,2]
[384998014,1757641849239,-480.0,0.00018218,2]
[384998016,1757641849248,-151.0,0.000183,2]
[384998018,1757641849258,-660.0,0.00018319,2]
[384998020,1757641849267,-168.0,0.00018378,2]
[384998022,1757641849276,-28375.50605511,0.0001845,2]
[384998024,1757641849286,-480.0,0.00018468,2]
[384998026,1757641849295,-480.0,0.00018468,2]
[384998028,1757641849304,-1576.27,0.00018468,2]
[384998030,1757641849314,-933.28,0.00018468,2]
[384998032,1757641849323,-756.37,0.00018468,2]
[384998034,1757641849332,-1260.59,0.00018468,2]
[384998035,1757641849342,-480.0,0.00018468,2]
[384998038,1757641849351,-831.37,0.00018468,2]
[384998040,1757641849361,-1013.41,0.00018468,2]
[384998042,1757641849371,-480.0,0.00018468,2]
[384998043,1757641849380,-1232.83,0.00018468,2]
[384998045,1757641849389,-480.0,0.00018468,2]
[384998047,1757641849398,-2693.59,0.00018468,2]
[384998049,1757641849407,-2811.94,0.00018468,2]
[384998051,1757641849417,-499.29,0.00018468,2]
[384998053,1757641849426,-597.41,0.00018468,2]
[384998055,1757641849435,-7142.53,0.00018468,2]
[384998057,1757641849444,-151.0,0.00018469,2]
[384998059,1757641849453,-480.0,0.00018469,2]
[384998061,1757641849463,-829.62,0.00018469,2]
[384998063,1757641849471,-768.51,0.00018469,2]
[384998065,1757641849481,-624.59,0.00018469,2]
[384998067,1757641849490,-480.0,0.00018469,2]
[384998069,1757641849499,-163.969088,0.00018469,2]
[384998071,1757641849509,-480.0,0.00018469,2]
[384998073,1757641849518,-480.0,0.00018492,2]
[384998075,1757641849528,-227.044988,0.00018493,2]
[384998077,1757641849537,-3000.0,0.0001852,2]
[384998079,1757641849546,-312.8839651,0.00018529,2]
[384998081,1757641849555,-168.0,0.00018569,2]
[384998083,1757641849564,-1000.0,0.00018673,2]
[384998085,1757641849573,-300797.89285812,0.0001874,2]
[384998111,1757641849834,-1068.55161288,0.0001874,2]
[384998113,1757641849845,-169.614471,0.0001874,2]
[384998115,1757641849862,-151.0,0.0001874,2]
[384998117,1757641849871,-151.0,0.0001874,2]
[384998119,1757641849885,-151.0,0.0001874,2]
[384998121,1757641849898,-480.0,0.00018742,2]
[384998123,1757641849907,-480.0,0.00018742,2]
[384998125,1757641849916,-1576.27,0.00018742,2]
[384998127,1757641849926,-933.28,0.00018742,2]
[384998129,1757641849935,-756.37,0.00018742,2]
[384998131,1757641849944,-1260.59,0.00018742,2]
[384998133,1757641849954,-831.37,0.00018742,2]
[384998135,1757641849963,-1013.41,0.00018742,2]
[384998137,1757641849972,-480.0,0.00018742,2]
[384998139,1757641849981,-1232.83,0.00018742,2]
[384998141,1757641849992,-480.0,0.00018742,2]
[384998143,1757641850001,-2693.59,0.00018742,2]
[384998145,1757641850010,-2811.94,0.00018742,2]
[384998147,1757641850020,-499.29,0.00018742,2]
[384998149,1757641850029,-597.41,0.00018742,2]
[384998151,1757641850039,-7142.53,0.00018742,2]
[384998153,1757641850048,-480.0,0.00018743,2]
[384998155,1757641850057,-829.62,0.00018743,2]
[384998157,1757641850066,-768.51,0.00018743,2]
[384998159,1757641850075,-624.59,0.00018743,2]
[384998161,1757641850085,-480.0,0.00018743,2]
[384998163,1757641850094,-480.0,0.00018743,2]
[384998165,1757641850103,-274.13639976,0.00018749,2]
[384998167,1757641850112,-480.0,0.00018766,2]
[384998168,1757641850121,-500.0,0.00018773,2]
[384998170,1757641850131,-179.02870033,0.00018773,2]
[384998172,1757641850140,-500.0,0.00018773,2]
[384998174,1757641850149,-500.0,0.00018773,2]
[384998176,1757641850158,-623.76083015,0.00018773,2]
[384998178,1757641850167,-343.7304687,0.00018835,2]
[384998180,1757641850176,-823.0,0.00018857,2]
[384998182,1757641850186,-760.0,0.00018867,2]
[384998184,1757641850195,-581.68578125,0.00018988,2]
[384998186,1757641850204,-151.0,0.00019,2]
[384998188,1757641850213,-181.89664055,0.00019016,2]
[384998190,1757641850223,-621.2549297,0.00019016,2]
[384998192,1757641850232,-1576.27,0.00019016,2]
[384998194,1757641850242,-933.28,0.00019016,2]
[384998196,1757641850251,-756.37,0.00019016,2]
[384998198,1757641850260,-1260.59,0.00019016,2]
[384998200,1757641850270,-831.37,0.00019016,2]
[384998202,1757641850279,-1013.41,0.00019016,2]
[384998204,1757641850288,-399.14626822,0.00019016,2]
[384998206,1757641850297,-1232.83,0.00019016,2]
[384998208,1757641850306,-181.25390325,0.00019016,2]
[384998210,1757641850315,-2693.59,0.00019016,2]
[384998212,1757641850325,-2811.94,0.00019016,2]
[384998214,1757641850334,-499.29,0.00019016,2]
[384998227,1757641850446,-597.41,0.00019016,2]
[384998229,1757641850457,-7142.53,0.00019016,2]
[384998231,1757641850466,-480.0,0.00019017,2]
[384998233,1757641850476,-829.62,0.00019017,2]
[384998235,1757641850485,-768.51,0.00019017,2]
[384998237,1757641850494,-624.59,0.00019017,2]
[384998239,1757641850502,-480.0,0.00019017,2]
[384998241,1757641850511,-480.0,0.00019017,2]
[384998243,1757641850520,-152.714452,0.00019039,2]
[384998245,1757641850529,-480.0,0.0001904,2]
[384998247,1757641850537,-157.0,0.00019178,2]
[384998248,1757641850546,-157.0,0.00019178,2]
[384998250,1757641850555,-300.0,0.00019178,2]
[384998252,1757641850565,-300.0,0.00019178,2]
[384998254,1757641850574,-300.0,0.00019178,2]
[384998256,1757641850583,-300.0,0.00019178,2]
[384998258,1757641850592,-5000.0,0.00019178,2]
[384998260,1757641850600,-5000.0,0.00019178,2]
[384998262,1757641850609,-250.40454602,0.00019191,2]
[384998264,1757641850618,-1500.0,0.00019221,2]
[384998266,1757641850627,-160.0,0.00019241,3]
[384998268,1757641850636,-8938.73995431,0.00019253,2]
[384998270,1757641850644,-1576.27,0.0001929,2]
[384998272,1757641850653,-933.28,0.0001929,2]
[384998274,1757641850663,-756.37,0.0001929,2]
[384998276,1757641850673,-1260.59,0.0001929,2]
[384998278,1757641850682,-831.37,0.0001929,2]
[384998280,1757641850691,-1013.41,0.0001929,2]
[384998281,1757641850700,-1232.83,0.0001929,2]
[384998284,1757641850709,-2693.59,0.0001929,2]
[384998285,1757641850718,-2811.94,0.0001929,2]
[384998287,1757641850727,-499.29,0.0001929,2]
[384998289,1757641850737,-597.41,0.0001929,2]
[384998291,1757641850746,-7142.53,0.0001929,2]
[384998293,1757641850755,-480.0,0.00019291,2]
[384998295,1757641850764,-829.62,0.00019291,2]
[384998297,1757641850774,-768.51,0.00019291,2]
[384998299,1757641850783,-624.59,0.00019291,2]
[384998301,1757641850792,-480.0,0.00019291,2]
[384998303,1757641850801,-480.0,0.00019291,2]
[384998305,1757641850810,-480.0,0.00019314,2]
[384998307,1757641850819,-300.0,0.00019315,2]
[384998309,1757641850827,-1000.0,0.00019321,2]
[384998311,1757641850836,-800.32137998,0.00019321,2]
[384998313,1757641850848,-199.67862002,0.00019321,2]
[384998315,1757641850858,-1001.09601849,0.00019321,2]
[384998317,1757641850867,-155.0,0.00019366,2]
[384998319,1757641850876,-860.0,0.00019415,2]
[384998321,1757641850886,-157.0,0.00019452,2]
[384998323,1757641850896,-157.0,0.00019452,2]
[384998324,1757641850905,-151.0,0.00019452,2]
[384998326,1757641850914,-300.35511103,0.00019452,2]
[384998328,1757641850923,-1000.0,0.00019491,20]
[384998330,1757641850932,-208.0,0.0001952,2]
[384998332,1757641850940,-180.57630818,0.0001952,2]
[384998334,1757641850949,-1576.27,0.00019564,2]
[384998336,1757641850959,-933.28,0.00019564,2]
[384998338,1757641850968,-756.37,0.00019564,2]
[384998339,1757641850977,-1260.59,0.00019564,2]
[384998341,1757641850986,-831.37,0.00019564,2]
[384998343,1757641850996,-1013.41,0.00019564,2]
[384998345,1757641851004,-1232.83,0.00019564,2]
[384998347,1757641851014,-2693.59,0.00019564,2]
[384998349,1757641851023,-2811.94,0.00019564,2]
[384998351,1757641851032,-499.29,0.00019564,2]